bitfinex/quotes_SOLUSD_20241029
["timestamp","ask_amount","ask_price","bid_price","bid_amount"]
[1730201666090,11.27195822,181.28,181.23,11.65610253]
[1730201666605,11.27195822,181.28,181.24,11.65610253]
[1730201666606,5.75555822,181.28,181.24,11.65610253]
[1730201666773,11.65610253,181.27,181.22,11.65610253]
[1730201666970,11.65610253,181.27,181.21,40.95138653]
[1730201667577,17.17280253,181.27,181.21,40.95138653]
[1730201668173,5.75555822,181.28,181.26,11.65610253]
[1730201668373,5.75555822,181.28,181.27,23.776884]
[1730201668597,5.75555822,181.28,181.22,1.10304085]
[1730201668598,22.92796075,181.28,181.22,11.75610253]
[1730201668783,22.92796075,181.28,181.23,23.776884]
[1730201669314,5.75555822,181.28,181.24,11.65610253]
[1730201669482,5.75555822,181.28,181.27,35.43298653]
[1730201669685,0.611669,181.31,181.27,40.94958653]
[1730201669886,0.611669,181.31,181.28,35.43298653]
[1730201670110,0.611669,181.31,181.28,23.776884]
[1730201670285,12.26777153,181.31,181.28,23.776884]
[1730201670486,11.65610253,181.3,181.25,23.776884]
[1730201670698,11.65610253,181.28,181.24,5.5175]
[1730201670887,11.65610253,181.26,181.22,23.776884]
[1730201671305,11.65610253,181.26,181.21,17.17430253]
[1730201671693,11.65610253,181.27,181.22,11.65610253]
[1730201671885,11.65610253,181.26,181.21,17.17430253]
[1730201672088,11.65610253,181.27,181.22,11.65610253]
[1730201672309,11.65610253,181.27,181.21,17.17430253]
[1730201672904,11.65610253,181.27,181.22,29.294784]
[1730201673399,11.65610253,181.27,181.22,40.95088653]
[1730201673717,5.5163,181.28,181.23,11.65610253]
[1730201673718,11.65610253,181.28,181.23,11.65610253]
[1730201674007,17.78317153,181.31,181.25,11.65610253]
[1730201674201,11.65610253,181.27,181.22,29.294784]
[1730201674406,11.65610253,181.27,181.22,40.95088653]
[1730201674709,11.65610253,181.29,181.24,35.43298653]
[1730201674906,12.26777153,181.31,181.27,23.776884]
[1730201675088,0.611669,181.31,181.27,35.43298653]
[1730201677006,0.611669,181.31,181.28,5.5163]
[1730201677321,0.611669,181.31,181.29,23.776884]
[1730201677610,11.65610253,181.3,181.28,5.5163]
[1730201678305,12.26777153,181.31,181.28,5.5163]
[1730201679004,12.26777153,181.31,181.26,23.776884]
[1730201679189,0.611669,181.31,181.26,35.43298653]
[1730201679604,0.611669,181.31,181.26,40.94988653]
[1730201679993,0.611669,181.31,181.27,11.65610253]
[1730201680197,0.611669,181.31,181.29,23.776884]
[1730201681306,0.611669,181.31,181.28,29.293184]
[1730201681507,0.611669,181.31,181.28,40.94928653]
[1730201682210,0.611669,181.31,181.3,35.43298653]
[1730201682507,0.611669,181.31,181.3,23.776884]
[1730201682730,0.611669,181.31,181.29,23.776884]
[1730201683293,0.611669,181.31,181.3,5.5157]
[1730201684296,0.611669,181.31,181.3,29.292584]
[1730201684616,0.611669,181.31,181.3,40.94868653]
[1730201684825,0.611669,181.31,181.3,29.292584]
[1730201685016,0.611669,181.31,181.3,40.94868653]
[1730201687621,0.611669,181.31,181.3,70.85258906]
[1730201687826,0.611669,181.31,181.3,70.95258906]
[1730201688120,0.611669,181.31,181.3,80.53235523]
[1730201688500,11.65610253,181.43,181.35,0.1]
[1730201688703,11.65610253,181.43,181.38,11.65610253]
[1730201689215,17.16730253,181.45,181.39,11.65610253]
[1730201689426,11.65610253,181.45,181.39,11.65610253]
[1730201689902,11.65610253,181.45,181.4,11.65610253]
[1730201690103,17.16700253,181.46,181.4,11.65610253]
[1730201690301,11.65610253,181.46,181.41,11.65610253]
[1730201690605,11.65610253,181.46,181.42,23.776884]
[1730201691107,21.4119,181.48,181.42,23.776884]
[1730201691307,11.65610253,181.46,181.42,23.776884]
[1730201691822,21.4119,181.48,181.42,23.776884]
[1730201692020,11.65610253,181.46,181.42,23.776884]
[1730201692223,11.65610253,181.45,181.42,23.776884]
[1730201692619,17.16670253,181.47,181.42,29.288884]
[1730201692824,11.65610253,181.45,181.42,29.288884]
[1730201693524,11.65610253,181.44,181.42,29.288884]
[1730201693726,11.65610253,181.43,181.39,23.776884]
[1730201694424,11.65610253,181.42,181.39,23.776884]
[1730201695147,11.65610253,181.43,181.38,40.94618653]
[1730201695632,11.65610253,181.44,181.38,40.94618653]
[1730201695931,11.65610253,181.44,181.39,11.65610253]
[1730201696531,11.65610253,181.44,181.4,23.776884]
[1730201696733,11.65610253,181.42,181.4,29.289184]
[1730201697205,11.65610253,181.43,181.4,29.289184]
[1730201698113,11.65610253,181.44,181.4,29.289184]
[1730201699011,11.65610253,181.45,181.4,29.289184]
[1730201699199,15.9016,181.48,181.42,23.776884]
[1730201699200,11.65610253,181.46,181.42,23.776884]
[1730201699406,11.65610253,181.47,181.43,23.776884]
[1730201699824,11.65610253,181.47,181.42,29.288884]
[1730201700025,11.65610253,181.44,181.37,0.1]
[1730201700219,11.65610253,181.45,181.41,23.776884]
[1730201700801,11.65610253,181.46,181.41,35.43298653]
[1730201701013,11.65610253,181.45,181.41,23.776884]
[1730201701223,21.412,181.48,181.41,23.776884]
[1730201701224,15.9016,181.48,181.43,23.776884]
[1730201701421,11.65610253,181.47,181.43,23.776884]
[1730201701623,15.9016,181.48,181.43,23.776884]
[1730201701807,27.55770253,181.48,181.44,23.776884]
[1730201702427,11.65610253,181.49,181.44,23.776884]
[1730201702831,11.65610253,181.48,181.45,5.5111]
[1730201703329,11.65610253,181.49,181.45,5.5111]
[1730201703520,11.65610253,181.49,181.46,23.776884]
[1730201704032,12.26777153,181.5,181.46,23.776884]
[1730201705015,0.611669,181.5,181.47,5.5105]
[1730201705223,0.611669,181.5,181.48,23.776884]
[1730201707207,0.611669,181.5,181.49,29.286784]
[1730201707826,0.611669,181.5,181.49,40.94288653]
[1730201708621,0.611669,181.5,181.49,29.286784]
[1730201709023,0.611669,181.5,181.49,23.776884]
[1730201709317,12.26777153,181.5,181.45,11.65610253]
[1730201709640,11.65610253,181.48,181.43,5.5117]
[1730201709824,11.65610253,181.49,181.43,17.16780253]
[1730201710030,17.77747153,181.5,181.44,11.65610253]
[1730201710628,12.26777153,181.5,181.45,5.5111]
[1730201710838,11.65610253,181.49,181.46,23.776884]
[1730201711856,12.26777153,181.5,181.46,23.776884]
[1730201712834,11.65610253,181.49,181.48,23.776884]
[1730201714451,11.65610253,181.49,181.45,5.5108]
[1730201714732,11.65610253,181.48,181.46,23.776884]
[1730201716139,11.65610253,181.49,181.46,23.776884]
[1730201717111,11.65610253,181.47,181.41,11.65610253]
[1730201717317,11.65610253,181.44,181.4,5.5124]
[1730201717525,11.65610253,181.41,181.35,17.55076765]
[1730201717724,11.65610253,181.4,181.35,11.65610253]
[1730201718537,7.43585449,181.4,181.36,5.5138]
[1730201718742,7.43585449,181.4,181.37,23.776884]
[1730201719539,7.43585449,181.4,181.36,29.290684]
[1730201720446,11.61865708,181.4,181.36,29.290684]
[1730201721722,11.61865708,181.41,181.36,40.90934108]
[1730201722923,16.3224,181.49,181.4,11.61865708]
[1730201723259,27.94105708,181.49,181.44,23.776884]
[1730201723847,16.3224,181.49,181.43,23.776884]
[1730201724140,11.61865708,181.47,181.43,23.776884]
[1730201724342,11.61865708,181.47,181.42,23.776884]
[1730201724554,11.61865708,181.47,181.42,35.39554108]
[1730201724930,11.61865708,181.47,181.44,23.776884]
[1730201725927,11.61865708,181.47,181.44,5.5112]
[1730201726138,20.0,181.44,181.32,5.74553227]
[1730201726335,20.0,181.37,181.32,5.74553227]
[1730201726537,11.61865708,181.33,181.27,5.5165]
[1730201726726,11.61865708,181.31,181.27,5.5165]
[1730201727335,11.61865708,181.29,181.25,5.517]
[1730201727538,11.61865708,181.3,181.25,5.517]
[1730201727860,6.098,181.36,181.24,5.5172]
[1730201728060,11.61865708,181.29,181.24,5.5172]
[1730201728552,0.95983273,181.37,181.28,11.71865708]
[1730201728724,11.61865708,181.39,181.34,11.61865708]
[1730201728927,11.61865708,181.38,181.32,11.61865708]
[1730201729135,6.098,181.4,181.32,11.61865708]
[1730201729136,11.61865708,181.37,181.32,11.61865708]
[1730201729335,11.61865708,181.33,181.29,0.1]
[1730201730068,11.61865708,181.33,181.31,23.776884]
[1730201730361,11.61865708,181.34,181.31,23.776884]
[1730201730562,11.61865708,181.33,181.31,23.776884]
[1730201730868,11.61865708,181.34,181.31,23.776884]
[1730201731061,11.61865708,181.32,181.31,23.776884]
[1730201731757,11.61865708,181.32,181.31,29.292284]
[1730201731962,11.61865708,181.32,181.25,0.2]
[1730201732142,17.71665708,181.4,181.25,0.2]
[1730201732143,11.61865708,181.27,181.26,29.393784]
[1730201732558,11.61865708,181.28,181.27,23.776884]
[1730201733748,11.61865708,181.28,181.27,29.293484]
[1730201733951,11.61865708,181.29,181.27,29.293484]
[1730201735270,11.61865708,181.3,181.27,29.293484]
[1730201735563,11.61865708,181.3,181.27,29.393484]
[1730201735737,11.61865708,181.31,181.28,0.1]
[1730201735936,11.61865708,181.32,181.28,0.2]
[1730201736365,11.61865708,181.32,181.29,0.2]
[1730201737252,11.61865708,181.32,181.31,23.776884]
[1730201738348,11.61865708,181.32,181.31,29.292284]
[1730201739074,16.1976,181.43,181.31,29.392284]
[1730201739365,21.7093,181.43,181.32,0.1]
[1730201739569,11.61865708,181.35,181.32,0.1]
[1730201739743,11.61865708,181.4,181.32,0.1]
[1730201739744,11.61865708,181.34,181.32,0.1]
[1730201740067,11.61865708,181.34,181.31,29.492284]
[1730201740365,11.61865708,181.32,181.3,29.492584]
[1730201740743,11.61865708,181.33,181.31,0.1]
[1730201740959,11.61865708,181.34,181.31,0.2]
[1730201741352,11.61865708,181.35,181.33,0.1]
[1730201741552,0.611669,181.5,181.39,0.1]
[1730201741874,11.61865708,181.42,181.39,0.1]
[1730201742354,0.611669,181.5,181.41,23.776884]
[1730201742856,11.61865708,181.43,181.42,0.1]
[1730201743065,11.61865708,181.43,181.41,23.876884]
[1730201743256,11.61865708,181.42,181.41,23.876884]
[1730201743942,0.611669,181.5,181.41,23.876884]
[1730201744144,11.61865708,181.44,181.41,23.876884]
[1730201744355,11.61865708,181.46,181.43,23.776884]
[1730201745570,11.61865708,181.45,181.43,23.776884]
[1730201746070,11.61865708,181.46,181.43,23.776884]
[1730201746368,11.61865708,181.46,181.44,5.5114]
[1730201747464,11.61865708,181.45,181.44,5.5114]
[1730201747647,17.73992608,181.5,181.44,5.5114]
[1730201747648,6.121269,181.5,181.44,5.5114]
[1730201747982,11.61865708,181.45,181.44,5.5114]
[1730201748152,11.61865708,181.45,181.39,0.1]
[1730201748477,11.61865708,181.43,181.39,0.1]
[1730201748680,11.61865708,181.41,181.39,0.1]
[1730201748877,11.61865708,181.41,181.36,0.1]
[1730201749362,11.61865708,181.4,181.36,0.1]
[1730201749551,11.61865708,181.4,181.35,0.2]
[1730201749750,11.61865708,181.4,181.37,0.1]
[1730201750470,5.5106,181.47,181.34,33.43455708]
[1730201750471,11.61865708,181.38,181.34,21.9159]
[1730201750779,6.4563,181.46,181.34,5.6145]
[1730201750780,11.61865708,181.37,181.34,5.6145]
[1730201751147,16.5722,181.44,181.34,5.5145]
[1730201751148,11.61865708,181.36,181.34,5.5145]
[1730201751377,11.61865708,181.35,181.34,5.5145]
[1730201751674,16.5722,181.44,181.32,0.1]
[1730201751675,11.61865708,181.37,181.33,5.6148]
[1730201751875,11.61865708,181.38,181.33,17.33345708]
[1730201752069,11.61865708,181.4,181.35,11.61865708]
[1730201752568,11.61865708,181.41,181.36,11.61865708]
[1730201752746,16.5722,181.44,181.35,11.61865708]
[1730201752952,11.61865708,181.4,181.35,11.61865708]
[1730201753453,22.0837,181.44,181.37,11.61865708]
[1730201753454,11.61865708,181.43,181.37,11.61865708]
[1730201753669,11.61865708,181.42,181.36,11.81865708]
[1730201753862,11.61865708,181.43,181.37,11.61865708]
[1730201754376,11.61865708,181.43,181.35,0.1]
[1730201754377,11.61865708,181.43,181.38,11.71865708]
[1730201754560,11.61865708,181.43,181.38,0.1]
[1730201755478,11.61865708,181.43,181.39,5.5129]
[1730201755971,21.5241,181.49,181.39,17.13155708]
[1730201756172,11.61865708,181.45,181.39,17.13155708]
[1730201757377,11.61865708,181.45,181.39,11.61865708]
[1730201757756,11.61865708,181.47,181.41,11.61865708]
[1730201757966,11.61865708,181.47,181.42,11.61865708]
[1730201758479,11.61865708,181.47,181.41,11.61865708]
[1730201758968,11.61865708,181.46,181.4,11.61865708]
[1730201759569,11.61865708,181.46,181.41,5.5123]
[1730201760256,11.61865708,181.45,181.41,5.5123]
[1730201760461,11.61865708,181.46,181.41,5.5123]
[1730201760654,11.61865708,181.43,181.41,5.5123]
[1730201760872,11.61865708,181.43,181.37,11.61865708]
[1730201761264,11.61865708,181.42,181.37,11.61865708]
[1730201761665,11.61865708,181.4,181.36,5.5138]
[1730201762173,11.61865708,181.39,181.36,5.5138]
[1730201762376,19.2858,181.48,181.36,5.5138]
[1730201762377,11.61865708,181.4,181.36,5.5138]
[1730201762971,11.61865708,181.39,181.36,5.5138]
[1730201763158,11.61865708,181.4,181.36,5.5138]
[1730201763561,5.5115,181.44,181.36,5.5138]
[1730201763562,11.61865708,181.41,181.36,17.13245708]
[1730201763982,11.61865708,181.38,181.35,5.5141]
[1730201764167,11.61865708,181.38,181.33,11.61865708]
[1730201764479,11.61865708,181.39,181.34,11.61865708]
[1730201765874,11.61865708,181.39,181.35,5.5141]
[1730201766178,27.09455708,181.4,181.35,17.13275708]
[1730201766357,18.24255708,181.42,181.37,11.61865708]
[1730201766565,11.61865708,181.42,181.37,11.61865708]
[1730201767867,11.61865708,181.42,181.38,5.5132]
[1730201768172,27.09455708,181.44,181.39,11.61865708]
[1730201768369,11.61865708,181.45,181.4,11.61865708]
[1730201768794,11.61865708,181.44,181.39,11.61865708]
[1730201768976,11.61865708,181.45,181.39,11.61865708]
[1730201769796,11.61865708,181.44,181.38,11.61865708]
[1730201770667,11.61865708,181.45,181.39,11.61865708]
[1730201771500,11.61865708,181.45,181.4,11.61865708]
[1730201771692,11.61865708,181.45,181.39,11.61865708]
[1730201772000,11.61865708,181.45,181.4,11.61865708]
[1730201772381,11.61865708,181.45,181.38,5.5132]
[1730201772382,15.8389,181.4,181.33,5.5148]
[1730201772594,22.1791,181.4,181.32,5.74343214]
[1730201772772,20.0,181.39,181.21,0.1]
[1730201772973,20.0,181.39,181.22,0.1]
[1730201772974,30.0,181.36,181.22,0.1]
[1730201773197,30.0,181.36,181.23,0.1]
[1730201773497,30.0,181.36,181.21,0.1]
[1730201773498,30.0,181.36,181.22,17.23675708]
[1730201773799,11.61865708,181.29,181.23,17.13645708]
[1730201774004,11.61865708,181.28,181.23,5.6178]
[1730201774168,11.61865708,181.25,181.21,11.2622701]
[1730201774374,11.61865708,181.25,181.21,5.5183]
[1730201774574,18.61847233,181.25,181.21,5.6183]
[1730201774799,18.61847233,181.25,181.21,5.5183]
[1730201774975,18.61847233,181.22,181.19,5.5187]
[1730201775180,18.61847233,181.22,181.18,5.5192]
[1730201775484,18.61847233,181.22,181.17,18.81847233]
[1730201775689,18.61847233,181.23,181.18,5.5193]
[1730201775891,18.61847233,181.27,181.21,18.61847233]
[1730201776076,18.61847233,181.28,181.22,18.61847233]
[1730201776277,18.61847233,181.27,181.21,18.61847233]
[1730201777399,18.61847233,181.26,181.2,18.61847233]
[1730201777581,18.61847233,181.23,181.17,18.71847233]
[1730201777990,46.07707233,181.3,181.16,18.61847233]
[1730201777991,18.61847233,181.22,181.16,18.61847233]
[1730201778301,18.61847233,181.22,181.16,24.13837233]
[1730201778485,18.61847233,181.22,181.17,0.1]
[1730201778999,18.61847233,181.21,181.15,5.74547365]
[1730201779209,18.61847233,181.21,181.16,5.5199]
[1730201779392,18.61847233,181.22,181.17,18.61847233]
[1730201779601,18.61847233,181.21,181.17,5.5194]
[1730201779799,18.61847233,181.22,181.17,24.13787233]
[1730201779978,18.61847233,181.26,181.2,18.61847233]
[1730201780602,40.56137233,181.3,181.25,18.61847233]
[1730201780778,21.9429,181.3,181.27,18.61847233]
[1730201781805,21.9429,181.3,181.26,18.61847233]
[1730201782904,15.5131,181.3,181.28,18.61847233]
[1730201783111,18.61847233,181.33,181.28,18.61847233]
[1730201783608,18.61847233,181.32,181.27,18.61847233]
[1730201783905,18.61847233,181.31,181.26,18.61847233]
[1730201784405,18.61847233,181.31,181.22,5.5181]
[1730201784406,18.61847233,181.29,181.24,18.61847233]
[1730201784993,18.61847233,181.31,181.26,18.61847233]
[1730201786410,18.61847233,181.3,181.25,18.61847233]
[1730201786986,18.61847233,181.3,181.24,5.5174]
[1730201786987,18.61847233,181.3,181.24,24.13587233]
[1730201787192,18.61847233,181.29,181.23,24.13627233]
[1730201787906,18.61847233,181.27,181.22,24.13637233]
[1730201788123,18.61847233,181.27,181.22,18.61847233]
[1730201789005,18.61847233,181.26,181.17,5.73876879]
[1730201789190,20.35868245,181.33,181.17,5.73876879]
[1730201789191,18.61847233,181.28,181.23,18.61847233]
[1730201790414,18.61847233,181.27,181.22,18.61847233]
[1730201790845,18.61847233,181.29,181.24,18.61847233]
[1730201791441,18.61847233,181.28,181.23,18.61847233]
[1730201792126,18.61847233,181.29,181.23,18.61847233]
[1730201792905,20.0,181.31,181.15,23.976884]
[1730201793117,0.95688245,181.33,181.29,18.61847233]
[1730201793332,18.61847233,181.33,181.28,18.61847233]
[1730201793498,18.61847233,181.32,181.27,18.61847233]
[1730201794802,18.61847233,181.31,181.26,18.61847233]
[1730201795013,18.61847233,181.3,181.25,18.61847233]
[1730201795287,5.5148,181.33,181.26,18.61847233]
[1730201795288,18.61847233,181.31,181.26,18.61847233]
[1730201795484,18.61847233,181.29,181.24,18.61847233]
[1730201795720,18.61847233,181.3,181.25,18.61847233]
[1730201796098,18.61847233,181.29,181.23,24.13597233]
[1730201796294,18.61847233,181.28,181.22,24.13657233]
[1730201796490,11.63714767,181.25,181.19,11.63714767]
[1730201796704,11.63714767,181.24,181.19,11.63714767]
[1730201797492,18.28714767,181.26,181.2,17.15574767]
[1730201797694,6.65,181.26,181.24,11.63714767]
[1730201798212,6.65,181.26,181.23,11.63714767]
[1730201799317,22.7638,181.31,181.25,11.63714767]
[1730201799495,34.40094767,181.31,181.27,11.63714767]
[1730201799822,34.40094767,181.31,181.26,11.63714767]
[1730201800388,34.40094767,181.31,181.25,18.61463435]
[1730201800389,11.63714767,181.3,181.25,18.61463435]
[1730201800624,18.61463435,181.3,181.25,18.61463435]
[1730201801522,41.37843435,181.31,181.26,18.61463435]
[1730201802810,22.7638,181.31,181.27,18.61463435]
[1730201802996,22.7638,181.31,181.29,18.61463435]
[1730201803528,0.95656053,181.38,181.31,21.6315]
[1730201803734,22.3911,181.47,181.37,18.61463435]
[1730201804019,15.8261,181.47,181.38,23.776884]
[1730201804224,15.8261,181.47,181.44,18.61463435]
[1730201805027,15.8261,181.47,181.45,18.61463435]
[1730201805523,15.8261,181.47,181.44,18.61463435]
[1730201806915,0.611669,181.5,181.46,18.61463435]
[1730201807225,0.611669,181.5,181.47,18.61463435]
[1730201807594,0.611669,181.5,181.48,18.61463435]
[1730201807799,0.611669,181.5,181.49,18.61463435]
[1730201811724,0.611669,181.5,181.48,18.61463435]
[1730201816342,0.611669,181.5,181.48,24.12483435]
[1730201818632,0.611669,181.5,181.41,6.5443]
[1730201818633,0.611669,181.5,181.47,18.61463435]
[1730201818838,0.611669,181.5,181.48,18.61463435]
[1730201819643,0.611669,181.5,181.49,18.61463435]
[1730201820413,0.611669,181.5,181.49,11.60286377]
[1730201820635,0.611669,181.5,181.48,11.60286377]
[1730201821240,0.611669,181.5,181.43,23.776884]
[1730201821241,0.611669,181.5,181.49,11.60286377]
[1730201821440,0.611669,181.5,181.49,17.11276377]
[1730201822644,0.611669,181.5,181.49,11.60286377]
[1730201824041,0.611669,181.5,181.49,17.11276377]
[1730201825835,0.611669,181.5,181.49,40.88964777]
[1730201831532,0.611669,181.5,181.49,52.49251154]
[1730201831733,16.94693657,181.63,181.52,23.776884]
[1730201831942,15.9902,181.63,181.58,11.60286377]
[1730201832131,27.59306377,181.63,181.58,11.60286377]
[1730201832451,27.59306377,181.63,181.57,11.60286377]
[1730201832949,11.60286377,181.62,181.57,17.11026377]
[1730201833135,11.60286377,181.61,181.57,5.5074]
[1730201834041,15.9902,181.63,181.59,11.60286377]
[1730201834252,27.59306377,181.63,181.58,35.37974777]
[1730201835232,11.60286377,181.63,181.59,5.5069]
[1730201835440,11.60286377,181.64,181.59,17.10976377]
[1730201835634,11.60286377,181.63,181.59,5.5069]
[1730201835848,11.60286377,181.6,181.55,23.776884]
[1730201836050,11.60286377,181.57,181.55,23.776884]
[1730201836358,11.60286377,181.56,181.51,5.5093]
[1730201836537,11.60286377,181.54,181.51,5.5093]
[1730201837052,11.60286377,181.55,181.51,5.5093]
[1730201840046,11.60286377,181.56,181.51,17.11216377]
[1730201840235,11.60286377,181.55,181.51,5.5093]
[1730201841349,11.60286377,181.54,181.51,5.5093]
[1730201841538,11.60286377,181.52,181.47,17.11336377]
[1730201841741,11.60286377,181.51,181.47,5.5105]
[1730201842535,11.60286377,181.52,181.47,17.11336377]
[1730201843560,11.60286377,181.52,181.47,11.60286377]
[1730201845146,11.60286377,181.53,181.48,35.37974777]
[1730201845552,11.60286377,181.51,181.48,23.776884]
[1730201845774,11.60286377,181.51,181.46,11.60286377]
[1730201845775,0.2,181.58,181.45,5.5111]
[1730201845936,11.60286377,181.53,181.48,11.60286377]
[1730201847057,11.60286377,181.53,181.49,5.5099]
[1730201848948,15.2948,181.59,181.52,11.60286377]
[1730201849139,11.60286377,181.58,181.53,11.60286377]
[1730201849339,15.2948,181.59,181.53,11.60286377]
[1730201849573,15.2948,181.59,181.54,11.60286377]
[1730201849574,26.89766377,181.59,181.54,11.60286377]
[1730201849752,15.2948,181.59,181.55,11.60286377]
[1730201849949,0.1,181.66,181.55,11.60286377]
[1730201849950,11.60286377,181.61,181.55,11.60286377]
[1730201850347,11.60286377,181.6,181.55,11.60286377]
[1730201850761,15.0051,181.63,181.56,11.60286377]
[1730201850940,11.60286377,181.61,181.57,5.5075]
[1730201851768,15.0051,181.63,181.59,11.60286377]
[1730201852066,26.60796377,181.63,181.58,11.60286377]
[1730201852448,11.60286377,181.63,181.58,11.60286377]
[1730201852647,11.60286377,181.64,181.59,11.60286377]
[1730201852949,20.0,181.63,181.58,35.37974777]
[1730201853358,20.0,181.63,181.59,11.60286377]
[1730201853861,11.60286377,181.65,181.6,11.60286377]
[1730201854065,11.60286377,181.64,181.59,11.60286377]
[1730201856264,11.60286377,181.64,181.58,35.37974777]
[1730201856468,11.60286377,181.64,181.59,11.60286377]
[1730201857277,11.60286377,181.65,181.6,11.60286377]
[1730201858570,11.60286377,181.64,181.59,11.60286377]
[1730201858747,11.60286377,181.64,181.6,23.776884]
[1730201859069,11.60286377,181.62,181.57,11.60286377]
[1730201859367,11.60286377,181.64,181.59,11.60286377]
[1730201860468,11.60286377,181.63,181.58,11.60286377]
[1730201860964,11.60286377,181.63,181.58,35.37974777]
[1730201862079,11.60286377,181.61,181.57,23.776884]
[1730201862472,11.60286377,181.61,181.56,11.60286377]
[1730201862655,11.60286377,181.6,181.54,11.60286377]
[1730201863168,15.8499,181.67,181.57,11.60286377]
[1730201863343,15.8499,181.67,181.51,5.6093]
[1730201863344,11.60286377,181.65,181.59,11.60286377]
[1730201863551,11.60286377,181.64,181.6,5.5066]
[1730201865744,11.60286377,181.65,181.6,5.5066]
[1730201865980,11.60286377,181.65,181.6,17.10946377]
[1730201867065,11.60286377,181.65,181.6,11.60286377]
[1730201867957,11.60286377,181.66,181.6,11.60286377]
[1730201868372,11.60286377,181.64,181.6,23.776884]
[1730201868751,11.60286377,181.65,181.6,35.37974777]
[1730201869273,11.60286377,181.66,181.61,11.60286377]
[1730201870780,27.45276377,181.67,181.62,11.60286377]
[1730201871072,11.60286377,181.64,181.59,11.60286377]
[1730201871753,11.60286377,181.65,181.6,11.60286377]
[1730201871954,11.60286377,181.66,181.61,35.37974777]
[1730201872164,27.45276377,181.67,181.62,11.60286377]
[1730201872366,27.45276377,181.67,181.61,35.37974777]
[1730201872559,11.60286377,181.66,181.61,35.37974777]
[1730201876173,1.60286377,181.66,181.61,35.37974777]
[1730201876447,27.45276377,181.67,181.62,11.60286377]
[1730201877573,11.60286377,181.66,181.61,35.37974777]
[1730201877882,27.45276377,181.67,181.62,11.60286377]
[1730201878364,11.60286377,181.67,181.62,11.60286377]
[1730201878563,0.611669,181.68,181.64,11.60286377]
[1730201879059,0.611669,181.68,181.65,23.776884]
[1730201880384,0.611669,181.68,181.65,35.37974777]
[1730201880756,0.611669,181.68,181.67,35.37974777]
[1730201881057,0.1,181.84,181.67,35.37974777]
[1730201881058,11.60286377,181.8,181.68,31.26890336]
[1730201881259,0.2,181.85,181.79,23.776884]
[1730201881260,11.60286377,181.84,181.79,23.776884]
[1730201881576,26.65116377,181.85,181.8,11.60286377]
[1730201881949,26.65116377,181.85,181.79,23.776884]
[1730201881950,15.0483,181.85,181.81,11.60286377]
[1730201882176,0.611669,181.86,181.83,11.60286377]
[1730201882367,0.611669,181.86,181.79,23.776884]
[1730201882368,0.611669,181.86,181.84,11.60286377]
[1730201883473,0.611669,181.86,181.83,11.60286377]
[1730201883777,0.611669,181.86,181.84,11.60286377]
[1730201884360,0.611669,181.86,181.85,11.60286377]
[1730201885481,12.21453277,181.86,181.81,11.60286377]
[1730201885862,11.60286377,181.84,181.79,11.60286377]
[1730201886362,11.60286377,181.84,181.78,11.60286377]
[1730201887173,11.60286377,181.84,181.79,11.60286377]
[1730201887475,11.60286377,181.85,181.8,11.60286377]
[1730201887871,12.21453277,181.86,181.81,11.60286377]
[1730201888873,11.60286377,181.85,181.8,11.60286377]
[1730201889086,11.60286377,181.82,181.72,16.265]
[1730201889287,11.60286377,181.8,181.75,11.60286377]
[1730201889472,11.60286377,181.79,181.74,11.60286377]
[1730201890074,11.60286377,181.8,181.75,11.60286377]
[1730201890468,11.60286377,181.79,181.75,23.776884]
[1730201890977,11.60286377,181.77,181.72,11.60286377]
[1730201891488,11.60286377,181.78,181.73,11.60286377]
[1730201891671,11.60286377,181.79,181.74,11.60286377]
[1730201891999,11.60286377,181.8,181.75,11.60286377]
[1730201892300,11.60286377,181.82,181.77,11.60286377]
[1730201892871,11.60286377,181.81,181.77,11.60286377]
[1730201893192,11.60286377,181.82,181.77,11.60286377]
[1730201893991,11.60286377,181.8,181.75,11.60286377]
[1730201894672,11.60286377,181.8,181.7,11.60286377]
[1730201894673,11.60286377,181.83,181.78,11.60286377]
[1730201895474,11.60286377,181.82,181.77,11.60286377]
[1730201896669,20.5808,181.84,181.7,11.60286377]
[1730201896670,26.68436377,181.84,181.79,11.60286377]
[1730201897074,11.60286377,181.83,181.78,11.60286377]
[1730201897577,26.68436377,181.84,181.79,11.60286377]
[1730201897881,26.68436377,181.84,181.7,11.60286377]
[1730201897882,15.0815,181.84,181.81,11.60286377]
[1730201898282,16.87917022,181.86,181.82,11.60286377]
[1730201898494,16.87917022,181.86,181.81,11.60286377]